[Event "*** Titled Tuesday Blitz"]
[Site "Chess.com"]
[Date "2020.11.10"]
[Round "2"]
[White "tlomigtlis"]
[Black "Mambastik-Fantastic"]
[Result "1-0"]
[WhiteElo "2596"]
[BlackElo "2304"]
[TimeControl "180+1"]
[EndTime "10:18:32 PST"]
[Termination "tlomigtlis won by resignation"]

1. d4 {[%clk 0:03:00]} 1... Nf6 {[%clk 0:02:58.9]} 2. c4 {[%clk 0:02:59.3]} 2...
c5 {[%clk 0:02:57.3]} 3. d5 {[%clk 0:02:59.1]} 3... e5 {[%clk 0:02:57.1]} 4. Nc3
{[%clk 0:02:57.8]} 4... d6 {[%clk 0:02:57.4]} 5. g3 {[%clk 0:02:57.7]} 5... Nbd7
{[%clk 0:02:57.4]} 6. Bg2 {[%clk 0:02:58]} 6... g6 {[%clk 0:02:57.8]} 7. e4
{[%clk 0:02:58.2]} 7... Bg7 {[%clk 0:02:58]} 8. Nge2 {[%clk 0:02:57.6]} 8... O-O
{[%clk 0:02:58.9]} 9. O-O {[%clk 0:02:56.8]} 9... a6 {[%clk 0:02:59.3]} 10. a4
{[%clk 0:02:56.3]} 10... Ne8 {[%clk 0:02:56.6]} 11. Be3 {[%clk 0:02:55.7]} 11...
f5 {[%clk 0:02:55.7]} 12. f4 {[%clk 0:02:49.8]} 12... Ndf6 {[%clk 0:02:40.9]}
13. fxe5 {[%clk 0:02:48.6]} 13... dxe5 {[%clk 0:02:40.7]} 14. Bxc5 {[%clk
0:02:48.2]} 14... Nd6 {[%clk 0:02:36.5]} 15. b4 {[%clk 0:02:47.2]} 15... a5
{[%clk 0:02:34.1]} 16. Bxd6 {[%clk 0:02:44.2]} 16... Qxd6 {[%clk 0:02:33.6]} 17.
c5 {[%clk 0:02:44.6]} 17... Qd8 {[%clk 0:02:31.9]} 18. b5 {[%clk 0:02:40.7]}
18... Ng4 {[%clk 0:02:27.9]} 19. Qd3 {[%clk 0:02:37.3]} 19... Bh6 {[%clk
0:02:26]} 20. Nd1 {[%clk 0:02:05.3]} 20... fxe4 {[%clk 0:02:19.9]} 21. Rxf8+
{[%clk 0:02:04.4]} 21... Qxf8 {[%clk 0:02:14.5]} 22. Qc4 {[%clk 0:02:03.8]}
22... Be3+ {[%clk 0:02:02.5]} 23. Kh1 {[%clk 0:02:03.6]} 23... Qxc5 {[%clk
0:01:54.9]} 24. Nxe3 {[%clk 0:02:01.7]} 24... Qxe3 {[%clk 0:01:49.3]} 25. d6+
{[%clk 0:01:59.2]} 25... Kh8 {[%clk 0:01:36.4]} 26. Rf1 {[%clk 0:01:53.7]} 26...
Nf2+ {[%clk 0:01:29.5]} 27. Rxf2 {[%clk 0:01:53]} 27... Qxf2 {[%clk 0:01:29.6]}
28. Ng1 {[%clk 0:01:35.8]} 28... e3 {[%clk 0:01:20.7]} 29. Qe4 {[%clk
0:01:02.2]} 29... Bg4 {[%clk 0:00:52.6]} 30. Qxe5+ {[%clk 0:00:57.6]} 30... Kg8
{[%clk 0:00:51.2]} 31. Bd5+ {[%clk 0:00:57.7]} 1-0

[Event "*** Titled Tuesday Blitz"]
[Site "Chess.com"]
[Date "2020.11.10"]
[Round "2"]
[White "eCztery"]
[Black "suyu28"]
[Result "0-1"]
[WhiteElo "2277"]
[BlackElo "2632"]
[TimeControl "180+1"]
[EndTime "10:18:34 PST"]
[Termination "suyu28 won by checkmate"]

1. e4 {[%clk 0:03:00.9]} 1... c6 {[%clk 0:03:00.1]} 2. Nc3 {[%clk 0:03:00.2]}
2... d5 {[%clk 0:03:01]} 3. Nf3 {[%clk 0:03:01]} 3... Bg4 {[%clk 0:03:00.5]} 4.
h3 {[%clk 0:02:58]} 4... Bxf3 {[%clk 0:03:00.7]} 5. Qxf3 {[%clk 0:02:58.9]} 5...
e6 {[%clk 0:03:00.9]} 6. d3 {[%clk 0:02:58.6]} 6... dxe4 {[%clk 0:02:58.2]} 7.
dxe4 {[%clk 0:02:58.1]} 7... Nf6 {[%clk 0:02:57.6]} 8. Bd2 {[%clk 0:02:55.7]}
8... Nbd7 {[%clk 0:02:57.2]} 9. O-O-O {[%clk 0:02:53]} 9... Qc7 {[%clk
0:02:57.2]} 10. Kb1 {[%clk 0:02:49.9]} 10... O-O-O {[%clk 0:02:55.3]} 11. g4
{[%clk 0:02:38.8]} 11... h6 {[%clk 0:02:53.8]} 12. Bg2 {[%clk 0:02:34.9]} 12...
Bd6 {[%clk 0:02:46.2]} 13. Rhe1 {[%clk 0:02:32.2]} 13... Ne5 {[%clk 0:02:45.9]}
14. Qe2 {[%clk 0:02:32.4]} 14... Ng6 {[%clk 0:02:45.5]} 15. Qc4 {[%clk
0:02:08.1]} 15... Bf4 {[%clk 0:02:29.4]} 16. Bxf4 {[%clk 0:01:35]} 16... Nxf4
{[%clk 0:02:28.8]} 17. Bf1 {[%clk 0:01:21.9]} 17... Nd7 {[%clk 0:02:19.8]} 18.
e5 {[%clk 0:01:12.7]} 18... g5 {[%clk 0:02:20]} 19. Rxd7 {[%clk 0:00:40.5]}
19... Rxd7 {[%clk 0:02:18]} 20. Ne4 {[%clk 0:00:41.1]} 20... Qxe5 {[%clk
0:02:08.6]} 21. Qa4 {[%clk 0:00:41.3]} 21... Rd4 {[%clk 0:01:54.1]} 22. Qxa7
{[%clk 0:00:15]} 22... Rxe4 {[%clk 0:01:54]} 23. Rd1 {[%clk 0:00:10.7]} 23...
Qb8 {[%clk 0:01:48.3]} 24. Qc5 {[%clk 0:00:10.5]} 24... Re5 {[%clk 0:01:27.7]}
25. Qe7 {[%clk 0:00:10]} 25... Qc7 {[%clk 0:01:27.5]} 26. Qf6 {[%clk 0:00:09.3]}
26... Rd8 {[%clk 0:01:28.1]} 27. Rxd8+ {[%clk 0:00:06.4]} 27... Qxd8 {[%clk
0:01:29]} 28. Qxe5 {[%clk 0:00:07]} 28... Qd1# {[%clk 0:01:29.1]} 0-1

[Event "*** Titled Tuesday Blitz"]
[Site "Chess.com"]
[Date "2020.11.10"]
[Round "2"]
[White "Chigorinetz"]
[Black "Abdimalik_Abdisalimov"]
[Result "1-0"]
[WhiteElo "2533"]
[BlackElo "2740"]
[TimeControl "180+1"]
[EndTime "10:18:36 PST"]
[Termination "Chigorinetz won by resignation"]

1. e4 {[%clk 0:03:00.9]} 1... c5 {[%clk 0:02:59.1]} 2. Nc3 {[%clk 0:03:00.5]}
2... d6 {[%clk 0:02:59.3]} 3. Nf3 {[%clk 0:02:59]} 3... a6 {[%clk 0:02:58.7]} 4.
g3 {[%clk 0:02:57.9]} 4... Nf6 {[%clk 0:02:57.5]} 5. Bg2 {[%clk 0:02:57.6]} 5...
g6 {[%clk 0:02:57.3]} 6. e5 {[%clk 0:02:55.7]} 6... dxe5 {[%clk 0:02:53.9]} 7.
Nxe5 {[%clk 0:02:56.6]} 7... Bg7 {[%clk 0:02:54.6]} 8. a4 {[%clk 0:02:55.6]}
8... O-O {[%clk 0:02:53.6]} 9. O-O {[%clk 0:02:54.9]} 9... Ra7 {[%clk
0:02:42.2]} 10. a5 {[%clk 0:02:53.3]} 10... Qc7 {[%clk 0:02:32.5]} 11. Re1
{[%clk 0:02:50.6]} 11... Rd8 {[%clk 0:02:23.1]} 12. d3 {[%clk 0:02:49.9]} 12...
e6 {[%clk 0:02:09]} 13. Bg5 {[%clk 0:02:42.6]} 13... h6 {[%clk 0:02:08.5]} 14.
Bd2 {[%clk 0:02:41.4]} 14... Nbd7 {[%clk 0:02:06.3]} 15. Nc4 {[%clk 0:02:40.8]}
15... b5 {[%clk 0:01:53.5]} 16. axb6 {[%clk 0:02:26.9]} 16... Nxb6 {[%clk
0:01:53.4]} 17. Bf4 {[%clk 0:02:27]} 17... Qxf4 {[%clk 0:01:48.9]} 18. gxf4
{[%clk 0:02:23.3]} 18... Nxc4 {[%clk 0:01:48.9]} 19. Qc1 {[%clk 0:01:53]} 19...
Nd6 {[%clk 0:01:45.5]} 20. Ne4 {[%clk 0:01:47.7]} 20... Nfxe4 {[%clk 0:01:32]}
21. dxe4 {[%clk 0:01:45.4]} 21... Nc4 {[%clk 0:01:31.8]} 22. b3 {[%clk
0:01:36.2]} 22... Bxa1 {[%clk 0:01:07.4]} 23. Qxa1 {[%clk 0:01:37.1]} 23... Nd2
{[%clk 0:01:05.5]} 24. Qf6 {[%clk 0:01:30.8]} 24... Rad7 {[%clk 0:00:32.9]} 25.
h4 {[%clk 0:01:30.1]} 25... h5 {[%clk 0:00:29.9]} 26. f5 {[%clk 0:01:30.1]}
26... exf5 {[%clk 0:00:30.8]} 27. exf5 {[%clk 0:01:22.7]} 27... Rd6 {[%clk
0:00:16.7]} 28. Re8+ {[%clk 0:01:21.9]} 28... Rxe8 {[%clk 0:00:16]} 29. Qxd6
{[%clk 0:01:21.7]} 1-0

[Event "*** Titled Tuesday Blitz"]
[Site "Chess.com"]
[Date "2020.11.10"]
[Round "2"]
[White "MasterMK73"]
[Black "Chernobay_Artem"]
[Result "0-1"]
[WhiteElo "2250"]
[BlackElo "2628"]
[TimeControl "180+1"]
[EndTime "10:18:37 PST"]
[Termination "Chernobay_Artem won on time"]

1. e4 {[%clk 0:03:00.9]} 1... Nf6 {[%clk 0:02:54.8]} 2. e5 {[%clk 0:02:59.2]}
2... Nd5 {[%clk 0:02:52.7]} 3. d4 {[%clk 0:02:59.1]} 3... d6 {[%clk 0:02:51.9]}
4. c4 {[%clk 0:02:59]} 4... Nb6 {[%clk 0:02:49.5]} 5. exd6 {[%clk 0:02:59.1]}
5... cxd6 {[%clk 0:02:48.3]} 6. d5 {[%clk 0:02:55.5]} 6... g6 {[%clk 0:02:35.8]}
7. Qd4 {[%clk 0:02:42.6]} 7... Rg8 {[%clk 0:02:33.6]} 8. Nf3 {[%clk 0:02:37.2]}
8... Bg7 {[%clk 0:02:31.1]} 9. Qh4 {[%clk 0:02:36.4]} 9... h5 {[%clk 0:02:27.6]}
10. Be2 {[%clk 0:02:31.6]} 10... Na4 {[%clk 0:02:16.9]} 11. Na3 {[%clk
0:01:22.5]} 11... Nxb2 {[%clk 0:02:16.5]} 12. Rb1 {[%clk 0:00:56.3]} 12... Qa5+
{[%clk 0:02:14.4]} 13. Kf1 {[%clk 0:00:51.2]} 13... Qxa3 {[%clk 0:02:13.7]} 14.
Nd4 {[%clk 0:00:51.3]} 14... Qxa2 {[%clk 0:02:01.7]} 15. Rxb2 {[%clk 0:00:42.9]}
15... Qa1 {[%clk 0:01:58.8]} 16. Nb3 {[%clk 0:00:27.5]} 16... Qa3 {[%clk
0:01:55.7]} 17. Nd4 {[%clk 0:00:18.3]} 17... Qa1 {[%clk 0:01:51.7]} 18. Nb3
{[%clk 0:00:16.5]} 18... Qa4 {[%clk 0:01:49.3]} 19. Rb1 {[%clk 0:00:10.7]} 19...
Qa2 {[%clk 0:01:47.1]} 20. Nd2 {[%clk 0:00:08.9]} 20... Bf5 {[%clk 0:01:38.6]}
21. Rxb7 {[%clk 0:00:03.6]} 21... Bf6 {[%clk 0:01:38.1]} 22. Qf4 {[%clk
0:00:01.5]} 22... Qc2 {[%clk 0:01:23.2]} 0-1

[Event "*** Titled Tuesday Blitz"]
[Site "Chess.com"]
[Date "2020.11.10"]
[Round "2"]
[White "PriSachu"]
[Black "pavelalexandru07"]
[Result "1-0"]
[WhiteElo "2517"]
[BlackElo "2295"]
[TimeControl "180+1"]
[EndTime "10:18:41 PST"]
[Termination "PriSachu won by checkmate"]

1. e4 {[%clk 0:03:00.9]} 1... c5 {[%clk 0:02:59.8]} 2. Nf3 {[%clk 0:03:00.6]}
2... d6 {[%clk 0:02:59.8]} 3. d4 {[%clk 0:03:01.2]} 3... cxd4 {[%clk 0:02:57.4]}
4. Nxd4 {[%clk 0:03:02.1]} 4... Nf6 {[%clk 0:02:57.6]} 5. Nc3 {[%clk 0:03:02.6]}
5... a6 {[%clk 0:02:57.4]} 6. h4 {[%clk 0:03:02.5]} 6... e5 {[%clk 0:02:55.2]}
7. Nb3 {[%clk 0:03:02.5]} 7... Be6 {[%clk 0:02:54.6]} 8. Be2 {[%clk 0:03:02.1]}
8... Be7 {[%clk 0:02:48.5]} 9. f4 {[%clk 0:03:02]} 9... Bd7 {[%clk 0:02:37.5]}
10. Be3 {[%clk 0:02:37]} 10... Bc6 {[%clk 0:02:33.7]} 11. Bf3 {[%clk 0:02:36.9]}
11... Nbd7 {[%clk 0:02:23.6]} 12. Qd2 {[%clk 0:02:36.6]} 12... b5 {[%clk
0:02:18.4]} 13. O-O-O {[%clk 0:02:35.8]} 13... Qc7 {[%clk 0:02:17.9]} 14. Kb1
{[%clk 0:02:35.4]} 14... a5 {[%clk 0:02:10.6]} 15. g4 {[%clk 0:02:34.9]} 15...
a4 {[%clk 0:02:06.5]} 16. Nc1 {[%clk 0:02:34.8]} 16... b4 {[%clk 0:02:06.7]} 17.
Nd5 {[%clk 0:02:34.8]} 17... Bxd5 {[%clk 0:01:15.6]} 18. exd5 {[%clk 0:02:34.8]}
18... Rb8 {[%clk 0:00:59.2]} 19. g5 {[%clk 0:02:26.6]} 19... Ng8 {[%clk
0:00:59.2]} 20. Bg4 {[%clk 0:02:18.7]} 20... h5 {[%clk 0:00:28.5]} 21. Bh3
{[%clk 0:02:17.2]} 21... Nc5 {[%clk 0:00:13.9]} 22. Bxc5 {[%clk 0:02:15.6]}
22... Qxc5 {[%clk 0:00:12]} 23. fxe5 {[%clk 0:02:16.2]} 23... dxe5 {[%clk
0:00:10.7]} 24. d6 {[%clk 0:02:16.9]} 24... Bd8 {[%clk 0:00:11]} 25. Rhe1 {[%clk
0:02:16.7]} 25... f6 {[%clk 0:00:10.5]} 26. Qd3 {[%clk 0:02:11]} 26... Kf7
{[%clk 0:00:06.9]} 27. Qf5 {[%clk 0:02:02.7]} 27... g6 {[%clk 0:00:07]} 28. Qd7+
{[%clk 0:02:00.7]} 28... Kf8 {[%clk 0:00:07.5]} 29. Be6 {[%clk 0:01:56.3]} 29...
Ne7 {[%clk 0:00:07.7]} 30. gxf6 {[%clk 0:01:50.2]} 30... Rh7 {[%clk 0:00:05.6]}
31. fxe7+ {[%clk 0:01:38.2]} 31... Bxe7 {[%clk 0:00:05.6]} 32. Rf1+ {[%clk
0:01:38.5]} 32... Kg7 {[%clk 0:00:05.1]} 33. Qxe7+ {[%clk 0:01:38.4]} 33... Kh8
{[%clk 0:00:05.2]} 34. Rf8+ {[%clk 0:01:36.8]} 34... Rxf8 {[%clk 0:00:04.2]} 35.
Qxf8# {[%clk 0:01:37.7]} 1-0

[Event "*** Titled Tuesday Blitz"]
[Site "Chess.com"]
[Date "2020.11.10"]
[Round "2"]
[White "SantoBlue"]
[Black "Volodar_Murzin"]
[Result "1-0"]
[WhiteElo "2912"]
[BlackElo "2571"]
[TimeControl "180+1"]
[EndTime "10:18:42 PST"]
[Termination "SantoBlue won on time"]

1. e4 {[%clk 0:03:00.9]} 1... c5 {[%clk 0:02:59.1]} 2. Nf3 {[%clk 0:03:00.1]}
2... d6 {[%clk 0:02:58.7]} 3. d4 {[%clk 0:03:00.1]} 3... cxd4 {[%clk 0:02:58.3]}
4. Nxd4 {[%clk 0:03:00.7]} 4... Nf6 {[%clk 0:02:57.3]} 5. Nc3 {[%clk 0:03:00.6]}
5... a6 {[%clk 0:02:55.4]} 6. a3 {[%clk 0:02:58.9]} 6... e5 {[%clk 0:02:46.8]}
7. Nf5 {[%clk 0:02:58.9]} 7... d5 {[%clk 0:02:38.9]} 8. Bg5 {[%clk 0:02:58.1]}
8... d4 {[%clk 0:02:37.4]} 9. Bxf6 {[%clk 0:02:57.4]} 9... gxf6 {[%clk
0:02:13.7]} 10. Nb1 {[%clk 0:02:56.8]} 10... Nd7 {[%clk 0:02:09.8]} 11. Nd2
{[%clk 0:02:52.1]} 11... Nc5 {[%clk 0:02:05.4]} 12. Bd3 {[%clk 0:02:41.2]} 12...
Be6 {[%clk 0:02:03.5]} 13. O-O {[%clk 0:02:41]} 13... Rc8 {[%clk 0:02:01.8]} 14.
f4 {[%clk 0:02:31.3]} 14... Na4 {[%clk 0:01:56.2]} 15. Rb1 {[%clk 0:02:29]}
15... h5 {[%clk 0:01:15.8]} 16. Nf3 {[%clk 0:02:10]} 16... Bd6 {[%clk
0:00:57.1]} 17. fxe5 {[%clk 0:02:06.4]} 17... fxe5 {[%clk 0:00:50.9]} 18. Ng5
{[%clk 0:02:03.6]} 18... Qxg5 {[%clk 0:00:43.6]} 19. Nxd6+ {[%clk 0:02:03.2]}
19... Ke7 {[%clk 0:00:35.2]} 20. Nxc8+ {[%clk 0:02:03]} 20... Rxc8 {[%clk
0:00:33.9]} 21. Qe1 {[%clk 0:01:58.2]} 21... Nc5 {[%clk 0:00:29.3]} 22. Kh1
{[%clk 0:01:55.3]} 22... Rg8 {[%clk 0:00:15.5]} 23. Rf2 {[%clk 0:01:53]} 23...
Kd7 {[%clk 0:00:14.7]} 24. Qb4 {[%clk 0:01:49.6]} 24... Rc8 {[%clk 0:00:08.3]}
25. Rbf1 {[%clk 0:01:48.6]} 25... Ke8 {[%clk 0:00:06.5]} 26. Kg1 {[%clk
0:01:36.6]} 26... Qe3 {[%clk 0:00:05.7]} 27. Kh1 {[%clk 0:01:32.7]} 27... Nxe4
{[%clk 0:00:03.7]} 28. Rf3 {[%clk 0:01:27.5]} 1-0

[Event "*** Titled Tuesday Blitz"]
[Site "Chess.com"]
[Date "2020.11.10"]
[Round "2"]
[White "Kotofeyca"]
[Black "mamonika"]
[Result "1-0"]
[WhiteElo "2364"]
[BlackElo "1999"]
[TimeControl "180+1"]
[EndTime "10:18:42 PST"]
[Termination "Kotofeyca won by checkmate"]

1. d4 {[%clk 0:03:00.9]} 1... Nf6 {[%clk 0:02:59.1]} 2. c4 {[%clk 0:02:59.8]}
2... e6 {[%clk 0:02:58.8]} 3. Nf3 {[%clk 0:02:59.5]} 3... b6 {[%clk 0:02:58.8]}
4. g3 {[%clk 0:02:59]} 4... Ba6 {[%clk 0:02:59]} 5. Qa4 {[%clk 0:02:58.4]} 5...
Be7 {[%clk 0:02:27.2]} 6. Bg2 {[%clk 0:02:56.8]} 6... Bb7 {[%clk 0:02:20.4]} 7.
Nc3 {[%clk 0:02:55.1]} 7... O-O {[%clk 0:02:18.5]} 8. O-O {[%clk 0:02:54.5]}
8... c5 {[%clk 0:02:17.7]} 9. dxc5 {[%clk 0:02:54.4]} 9... Bxc5 {[%clk
0:02:16.5]} 10. Rd1 {[%clk 0:02:53.9]} 10... Qc8 {[%clk 0:02:14.3]} 11. Bf4
{[%clk 0:02:50.2]} 11... d5 {[%clk 0:02:00.4]} 12. cxd5 {[%clk 0:02:41]} 12...
Nxd5 {[%clk 0:01:57.5]} 13. Nxd5 {[%clk 0:02:38.5]} 13... Bxd5 {[%clk
0:01:58.4]} 14. Rac1 {[%clk 0:02:35.3]} 14... Qb7 {[%clk 0:01:52.1]} 15. b4
{[%clk 0:02:33]} 15... Be7 {[%clk 0:01:51.5]} 16. Rc7 {[%clk 0:02:30.2]} 16...
Qa6 {[%clk 0:01:26.4]} 17. Qxa6 {[%clk 0:02:18.3]} 17... Nxa6 {[%clk 0:01:27.3]}
18. Rxe7 {[%clk 0:02:18.5]} 18... Nxb4 {[%clk 0:01:26.9]} 19. a3 {[%clk
0:02:11.4]} 19... Nc2 {[%clk 0:01:13.2]} 20. a4 {[%clk 0:01:47]} 20... a5 {[%clk
0:00:54.4]} 21. Rc1 {[%clk 0:01:17.9]} 21... Rac8 {[%clk 0:00:50.7]} 22. Ne5
{[%clk 0:01:10]} 22... Rfd8 {[%clk 0:00:47.3]} 23. Nxf7 {[%clk 0:00:50.1]} 23...
Bxg2 {[%clk 0:00:35.3]} 24. Nxd8 {[%clk 0:00:49.2]} 24... Bd5 {[%clk 0:00:28.6]}
25. Re8# {[%clk 0:00:48]} 1-0

[Event "*** Titled Tuesday Blitz"]
[Site "Chess.com"]
[Date "2020.11.10"]
[Round "2"]
[White "Shuvalov"]
[Black "Ashedu66"]
[Result "1-0"]
[WhiteElo "2447"]
[BlackElo "2232"]
[TimeControl "180+1"]
[EndTime "10:18:46 PST"]
[Termination "Shuvalov won on time"]

1. Nf3 {[%clk 0:02:59.6]} 1... d5 {[%clk 0:02:59.4]} 2. c4 {[%clk 0:02:58.8]}
2... e6 {[%clk 0:02:58.9]} 3. g3 {[%clk 0:02:58.5]} 3... Nf6 {[%clk 0:02:59]} 4.
Bg2 {[%clk 0:02:59]} 4... Be7 {[%clk 0:02:59.3]} 5. b3 {[%clk 0:02:59.6]} 5...
O-O {[%clk 0:02:59.3]} 6. Bb2 {[%clk 0:03:00.2]} 6... c6 {[%clk 0:02:59.5]} 7.
O-O {[%clk 0:03:00.6]} 7... a5 {[%clk 0:02:56.1]} 8. Nc3 {[%clk 0:03:00.1]} 8...
Nbd7 {[%clk 0:02:54.4]} 9. d4 {[%clk 0:02:57]} 9... b6 {[%clk 0:02:52.4]} 10. e3
{[%clk 0:02:55.5]} 10... Ba6 {[%clk 0:02:52.2]} 11. Nd2 {[%clk 0:02:54.7]} 11...
Rc8 {[%clk 0:02:49.9]} 12. Qe2 {[%clk 0:02:52.9]} 12... Qc7 {[%clk 0:02:39.3]}
13. e4 {[%clk 0:02:52.7]} 13... Qa7 {[%clk 0:02:24.7]} 14. exd5 {[%clk
0:02:51.5]} 14... cxd5 {[%clk 0:02:24.7]} 15. Nxd5 {[%clk 0:02:46.4]} 15... Nxd5
{[%clk 0:01:58.2]} 16. Bxd5 {[%clk 0:02:45.7]} 16... exd5 {[%clk 0:01:41.1]} 17.
Qxe7 {[%clk 0:02:45.6]} 17... Rfe8 {[%clk 0:01:40.4]} 18. Qg5 {[%clk 0:02:37.5]}
18... Nf6 {[%clk 0:01:22.9]} 19. Rfe1 {[%clk 0:02:34.1]} 19... Qd7 {[%clk
0:01:12.8]} 20. Rac1 {[%clk 0:02:28.5]} 20... h6 {[%clk 0:00:58.7]} 21. Rxe8+
{[%clk 0:02:23.4]} 21... Rxe8 {[%clk 0:00:56.8]} 22. Qf4 {[%clk 0:02:23.6]}
22... Qh3 {[%clk 0:00:47.7]} 23. Qh4 {[%clk 0:02:20.1]} 23... Qf5 {[%clk
0:00:30]} 24. Bc3 {[%clk 0:02:08.3]} 24... Qd3 {[%clk 0:00:24.8]} 25. Qf4 {[%clk
0:02:02]} 25... Bb7 {[%clk 0:00:21.3]} 26. c5 {[%clk 0:01:57.2]} 26... bxc5
{[%clk 0:00:20]} 27. dxc5 {[%clk 0:01:57.5]} 27... d4 {[%clk 0:00:18.7]} 28.
Qxd4 {[%clk 0:01:55.8]} 28... Qe2 {[%clk 0:00:17.9]} 29. Bxa5 {[%clk 0:01:45.9]}
29... Ne4 {[%clk 0:00:15.9]} 30. c6 {[%clk 0:01:39.4]} 30... Nxd2 {[%clk
0:00:14.6]} 31. Bxd2 {[%clk 0:01:36.7]} 31... Bc8 {[%clk 0:00:01.8]} 32. Bc3
{[%clk 0:01:34.3]} 32... f6 {[%clk 0:00:01.1]} 33. Qc4+ {[%clk 0:01:34.1]} 1-0

[Event "*** Titled Tuesday Blitz"]
[Site "Chess.com"]
[Date "2020.11.10"]
[Round "2"]
[White "Atousa1"]
[Black "AvitalBor"]
[Result "0-1"]
[WhiteElo "2411"]
[BlackElo "2680"]
[TimeControl "180+1"]
[EndTime "10:18:51 PST"]
[Termination "AvitalBor won by resignation"]

1. e4 {[%clk 0:03:00.9]} 1... e5 {[%clk 0:02:59.5]} 2. Nf3 {[%clk 0:03:00.8]}
2... Nc6 {[%clk 0:03:00.1]} 3. Bb5 {[%clk 0:03:00.3]} 3... a6 {[%clk 0:03:00.7]}
4. Ba4 {[%clk 0:03:00.4]} 4... Nf6 {[%clk 0:03:01.2]} 5. O-O {[%clk 0:02:59.4]}
5... b5 {[%clk 0:03:01.8]} 6. Bb3 {[%clk 0:02:59.1]} 6... Bb7 {[%clk 0:03:02.7]}
7. d3 {[%clk 0:02:58.1]} 7... Be7 {[%clk 0:03:01.3]} 8. Re1 {[%clk 0:02:55.5]}
8... O-O {[%clk 0:03:01.4]} 9. c3 {[%clk 0:02:55.9]} 9... d6 {[%clk 0:02:59.3]}
10. h3 {[%clk 0:02:54.6]} 10... Qd7 {[%clk 0:02:54.5]} 11. Nbd2 {[%clk
0:02:53.4]} 11... Nd8 {[%clk 0:02:54.6]} 12. Nf1 {[%clk 0:02:41.2]} 12... Ne6
{[%clk 0:02:54.3]} 13. Ng3 {[%clk 0:02:41]} 13... c5 {[%clk 0:02:53.5]} 14. Nf5
{[%clk 0:02:20.7]} 14... Bd8 {[%clk 0:02:52.4]} 15. Nh2 {[%clk 0:02:03.2]} 15...
g6 {[%clk 0:02:06.4]} 16. Bh6 {[%clk 0:01:19.9]} 16... gxf5 {[%clk 0:02:02]} 17.
Qf3 {[%clk 0:00:50.4]} 17... Ng7 {[%clk 0:01:38.1]} 18. g4 {[%clk 0:00:43.9]}
18... fxg4 {[%clk 0:01:20.8]} 19. hxg4 {[%clk 0:00:44.1]} 19... Kh8 {[%clk
0:01:20.2]} 20. g5 {[%clk 0:00:44]} 20... Ng8 {[%clk 0:01:18.5]} 21. Ng4 {[%clk
0:00:35.2]} 21... f5 {[%clk 0:01:10.1]} 22. Kg2 {[%clk 0:00:13]} 22... Bxg5
{[%clk 0:01:02.1]} 23. Ne3 {[%clk 0:00:11]} 23... Nxh6 {[%clk 0:00:55.7]} 24.
Rh1 {[%clk 0:00:10.8]} 24... fxe4 {[%clk 0:00:53.5]} 0-1

[Event "*** Titled Tuesday Blitz"]
[Site "Chess.com"]
[Date "2020.11.10"]
[Round "2"]
[White "No_t_ime_to_die"]
[Black "BAS8892"]
[Result "0-1"]
[WhiteElo "2499"]
[BlackElo "2725"]
[TimeControl "180+1"]
[EndTime "10:18:55 PST"]
[Termination "BAS8892 won by resignation"]

1. e4 {[%clk 0:02:57.3]} 1... c6 {[%clk 0:02:58.4]} 2. d4 {[%clk 0:02:55.8]}
2... d5 {[%clk 0:02:58.2]} 3. f3 {[%clk 0:02:56.7]} 3... e6 {[%clk 0:02:57.6]}
4. Nc3 {[%clk 0:02:56.2]} 4... Bb4 {[%clk 0:02:56.9]} 5. Bf4 {[%clk 0:02:53.1]}
5... Ne7 {[%clk 0:02:54]} 6. Ne2 {[%clk 0:02:50.7]} 6... b6 {[%clk 0:02:52.7]}
7. a3 {[%clk 0:02:50.1]} 7... Bd6 {[%clk 0:02:47.7]} 8. e5 {[%clk 0:02:46.6]}
8... Bc7 {[%clk 0:02:47.4]} 9. Qd2 {[%clk 0:02:46.8]} 9... c5 {[%clk 0:02:47]}
10. Nb5 {[%clk 0:02:46.3]} 10... Nbc6 {[%clk 0:02:45.8]} 11. c3 {[%clk 0:02:32]}
11... Ba6 {[%clk 0:02:44.8]} 12. Nxc7+ {[%clk 0:02:31.3]} 12... Qxc7 {[%clk
0:02:44.4]} 13. Be3 {[%clk 0:02:19.8]} 13... O-O {[%clk 0:02:41]} 14. Ng3 {[%clk
0:02:14.3]} 14... Bxf1 {[%clk 0:02:38.8]} 15. Rxf1 {[%clk 0:02:15.2]} 15... f6
{[%clk 0:02:36.8]} 16. exf6 {[%clk 0:02:14.2]} 16... Rxf6 {[%clk 0:02:36.6]} 17.
Kf2 {[%clk 0:02:13.5]} 17... Na5 {[%clk 0:02:34.6]} 18. Kg1 {[%clk 0:02:10]}
18... Nb3 {[%clk 0:02:33.6]} 19. Qe2 {[%clk 0:02:10.4]} 19... Nxa1 {[%clk
0:02:33.1]} 20. Rxa1 {[%clk 0:02:09.6]} 20... e5 {[%clk 0:02:31.2]} 21. Bg5
{[%clk 0:02:06.4]} 21... Re6 {[%clk 0:02:31.1]} 22. Re1 {[%clk 0:02:02.9]} 22...
cxd4 {[%clk 0:02:27]} 23. cxd4 {[%clk 0:02:02.7]} 23... Nc6 {[%clk 0:02:26.7]}
24. Nf5 {[%clk 0:01:31.5]} 24... Rae8 {[%clk 0:02:24.8]} 25. Qb5 {[%clk
0:01:28.2]} 25... exd4 {[%clk 0:02:20.5]} 26. Qxd5 {[%clk 0:01:26]} 26... Qf7
{[%clk 0:02:14.1]} 27. Rxe6 {[%clk 0:00:55.8]} 27... Qxe6 {[%clk 0:02:13.5]} 28.
Qxe6+ {[%clk 0:00:43.8]} 28... Rxe6 {[%clk 0:02:12.9]} 29. Kf2 {[%clk
0:00:43.9]} 29... h6 {[%clk 0:02:12.6]} 30. Bd2 {[%clk 0:00:42.5]} 30... d3
{[%clk 0:02:11.4]} 31. Ng3 {[%clk 0:00:41.1]} 31... Ne5 {[%clk 0:02:09.4]} 32.
Ne4 {[%clk 0:00:39.4]} 32... Nc4 {[%clk 0:02:08.7]} 33. Bc3 {[%clk 0:00:39.9]}
33... a5 {[%clk 0:02:05.8]} 34. Bd4 {[%clk 0:00:37.5]} 34... a4 {[%clk
0:02:05.5]} 35. g4 {[%clk 0:00:32.4]} 35... b5 {[%clk 0:02:05.4]} 36. Bc3 {[%clk
0:00:31.4]} 36... Kf7 {[%clk 0:02:02.3]} 37. h4 {[%clk 0:00:21.5]} 37... g6
{[%clk 0:02:00.9]} 38. Ng3 {[%clk 0:00:20.9]} 38... Rd6 {[%clk 0:01:57.7]} 39.
Ne4 {[%clk 0:00:21]} 39... Rd8 {[%clk 0:01:56.4]} 40. Ke1 {[%clk 0:00:20.1]}
40... h5 {[%clk 0:01:55.6]} 41. gxh5 {[%clk 0:00:19.6]} 41... gxh5 {[%clk
0:01:55.4]} 42. Kd1 {[%clk 0:00:19.5]} 42... Ke6 {[%clk 0:01:54.7]} 43. f4
{[%clk 0:00:15.1]} 43... Kf5 {[%clk 0:01:54.5]} 44. Ng3+ {[%clk 0:00:15.7]}
44... Kg4 {[%clk 0:01:53.9]} 45. Ne4 {[%clk 0:00:15.3]} 45... Kxf4 {[%clk
0:01:53.5]} 46. Nf6 {[%clk 0:00:15.3]} 46... d2 {[%clk 0:01:49]} 47. Nxh5+
{[%clk 0:00:14.6]} 47... Kf3 {[%clk 0:01:49.1]} 0-1